Cogmind - Beta 9.6 @@@ ROGUE MODE // 2020.08.11 @ 20:15:46 Player: Nalzok Result: Destroyed by G-47 Trooper with Particle Gun Performance ------------- Evolutions (1) 500 Regions Visited (2) 400 Robots Destroyed (10) 50 Value Destroyed (348) 348 Prototype IDs (0) 0 Alien Tech Used (0) 0 Bonus (0) 0 TOTAL SCORE: 1298 Bonus ------- None Cogmind --------- Core Integrity 0/400 Matter 300/300 Energy 93/100 System Corruption 0% Temperature Cool (9) Movement Walking (120) Location -9/Materials Parts ------- > --- POWER (1) -------- (None) > --- PROPULSION (2) --- Aluminum Leg > --- UTILITY (4) ------ Small Storage Unit > --- WEAPON (2) ------- (None) > --- INVENTORY (6) ---- Improved Heat Sink Peak State ------------ > --- POWER ------------ Improved Ion Engine > --- PROPULSION ------- Aluminum Leg > --- UTILITY ---------- Heat Sink Heat Sink Small Storage Unit > --- WEAPON ----------- Medium Laser Particle Gun > --- INVENTORY -------- Aluminum Leg Improved Heat Sink Mining Laser [Rating: 9] Favorites ----------- Power Light Ion Engine Engine Light Ion Engine Propulsion Aluminum Leg Leg Aluminum Leg Utility Small Storage Unit Device Heat Sink Storage Small Storage Unit Weapon Assault Rifle Energy Gun Small Laser Ballistic Gun Assault Rifle Special Weapon Mining Laser Build | -11 -10 -9 ------- Run | Scr Mat Mat Slots Evolved 2 | . . 2 Power . | . . . Propulsion . | . . . Utility 2 | . . 2 Weapon . | . . . Parts Attached 12 | . 6 6 Power 3 | . 2 1 Engine 3 | . 2 1 Core . | . . . Reactor . | . . . Propulsion 3 | . 2 1 Treads . | . . . Leg 3 | . 2 1 Wheel . | . . . Hover . | . . . Flight . | . . . Utility 2 | . 1 1 Device 2 | . 1 1 Storage . | . . . Processor . | . . . Hackware . | . . . Protection . | . . . Artifact . | . . . Weapon 4 | . 1 3 Energy Gun 2 | . . 2 Energy Cannon . | . . . Ballistic Gun 1 | . 1 . Ballistic Cannon . | . . . Launcher . | . . . Special Weapon 1 | . . 1 Impact Weapon . | . . . Slashing Weapon . | . . . Piercing Weapon . | . . . Special Melee Weapon . | . . . Unidentified Prototypes . | . . . Parts Lost 13 | . 2 11 Power 3 | . 1 2 Propulsion 3 | . 1 2 Utility 2 | . . 2 Weapon 5 | . . 5 Highest Loss Streak 11 | . 2 11 Average Slot Usage (%) 79 | . 92 64 Engine 12 | . 13 10 Leg 21 | . 27 16 Device 9 | . 8 9 Storage 12 | . 14 11 Energy Gun 4 | . 6 2 Ballistic Gun 17 | . 21 13 Naked Turns . | . . . Heaviest Build 18 | 10 11 18 Greatest Support 20 | 20 20 20 Greatest Overweight (x) 1 | . 1 1 Average Overweight (x) . | . . . Largest Inventory Capacity 6 | 6 6 6 Average Capacity 6 | 6 6 6 Most Carried 6 | 5 6 6 Average Carried 4 | 3 4 4 Final Capacity 6 | 6 6 6 Final Carried 6 | 2 6 1 Class Distribution -------------------- 92% | Mutant 7% | Scavenger-Mutant Dominant Class ---------------- Mutant | -10/Materials Mutant | -9/Materials Resources | -11 -10 -9 ----------- Run | Scr Mat Mat Matter Collected 361 | 200 131 30 Remotely . | . . . Salvage Created 408 | . 285 123 Parts 16 | . 12 4 Haulers Intercepted . | . . . Recyclers Shooed 1 | . . 1 Parts Field Recycled . | . . . Retrieved Matter . | . . . Parts Self-Destructed . | . . . Prevented . | . . . Kills | -11 -10 -9 ------- Run | Scr Mat Mat Combat Hostiles Destroyed 8 | . 5 3 Melee 1 | . . 1 Guns 7 | . 5 2 Classes Destroyed 4 | . 3 1 Worker 1 | . 1 . Watcher 1 | . 1 . Grunt 5 | . 5 . Sentry 3 | . . 3 Best Kill Streak 3 | . 3 2 Combat Bots Only 3 | . 3 2 Max Kills in Single Turn 1 | . 1 1 Gunslinging . | . . . Exploded . | . . . Melee 1 | . . 1 Uniques/NPCs Destroyed . | . . . Combat | -11 -10 -9 -------- Run | Scr Mat Mat Damage Taken 1488 | . 480 1008 Core 478 | . 76 402 Absorbed by Shields . | . . . Core Remaining (%) 84 | 100 69 . Volleys Fired 43 | . 23 20 Largest 2 | . 2 2 Hottest 115 | . 60 115 Shots Fired 82 | . 46 36 Gun 80 | . 46 34 Cannon . | . . . Launcher . | . . . Special 2 | . . 2 Kinetic 46 | . 35 11 Thermal 36 | . 11 25 Explosive . | . . . Electromagnetic . | . . . Robot Hit Streak 23 | . 22 23 Robot Miss Streak 2 | . 2 2 Penetration Max . | . . . Secondary Targets 3 | . 2 1 Max Gunslinging Chain 1 | . 1 1 Shots Hit Robots 67 | . 36 31 Core Hits 32 | . 15 17 Critical Hits . | . . . Critical Kills . | . . . Critical Parts Destroyed . | . . . Melee Attacks . | . . . Impact . | . . . Slashing . | . . . Piercing . | . . . Sneak Attacks . | . . . Combat Hostiles . | . . . Follow-up Attacks . | . . . Damage Inflicted 849 | . 388 461 Guns 767 | . 388 379 Cannons . | . . . Explosions . | . . . Melee . | . . . Ramming 34 | . . 34 Kinetic 378 | . 299 79 Thermal 437 | . 89 348 Explosive . | . . . Electromagnetic . | . . . Impact . | . . . Slashing . | . . . Piercing . | . . . Highest Corruption . | . . . Average Corruption . | . . . Corruption Purged . | . . . Overload Shots . | . . . Overflow Damage . | . . . Projectiles . | . . . Explosions . | . . . Melee . | . . . Knockbacks . | . . . Impact . | . . . Kinetic . | . . . Secondary . | . . . Self-Inflicted Damage 11 | . . 11 Shots . | . . . Rammed 23 | . . 23 Targets Rammed 26 | . . 26 Kicked 3 | . . 3 Crushed . | . . . Highest Temperature 80 | . 63 80 Average Temperature 35 | . 36 35 Received Heat Transfer 669 | . 270 399 Siege Activations . | . . . Robots Corrupted . | . . . Combat Hostiles . | . . . Parts Fried . | . . . Impact Corruptions . | . . . Robots Melted . | . . . Combat Hostiles . | . . . Parts Melted 1 | . . 1 Heat Transferred 1040 | . 200 840 Parts Sabotaged . | . . . Parts Stolen . | . . . Parts Stripped . | . . . Power Chain Reactions . | . . . Missiles Intercepted . | . . . Alert | -11 -10 -9 ------- Run | Scr Mat Mat Peak Influence 99 | . 82 99 Average Influence 50 | . 44 59 Maximum Alert Level . | . . . Low Security (%) 100 | 100 100 100 Level 1 . | . . . Level 2 . | . . . Level 3 . | . . . Level 4 . | . . . Level 5 . | . . . High Security . | . . . Max Security . | . . . Squads Dispatched 3 | . 1 2 Investigation 1 | . . 1 Extermination . | . . . Reinforcement 2 | . 1 1 Assault . | . . . Garrison . | . . . Intercept . | . . . Construction Impeded . | . . . Haulers Reinforced . | . . . Stealth | -11 -10 -9 --------- Run | Scr Mat Mat Distress Signals . | . . . Communications Jammed . | . . . Distress Signals . | . . . Times Spotted 19 | . 9 10 Peak Tracking Total 5 | . 4 5 Tactical Retreats 3 | . . 3 Traps | -11 -10 -9 ------- Run | Scr Mat Mat Traps Triggered . | . . . Indirectly . | . . . Trap Hack Attempts . | . . . Triggered . | . . . Disarmed . | . . . Reprogrammed . | . . . Reused . | . . . Traps Extracted . | . . . Installed . | . . . Triggered . | . . . Machines | -11 -10 -9 ---------- Run | Scr Mat Mat Machines Disabled . | . . . Max in Single Turn . | . . . Machines Sabotaged . | . . . Garrisons Compromised . | . . . Overloaded Fab Kills . | . . . Fab Network Shutdowns . | . . . Hacking | -11 -10 -9 --------- Run | Scr Mat Mat Machines Accessed 2 | . 1 1 Terminals 2 | . 1 1 Fabricators . | . . . Repair Stations . | . . . Recycling Units . | . . . Scanalyzers . | . . . Garrison Access . | . . . Total Hacks 5 | . 3 2 Successful 1 | . 1 . Failed 4 | . 2 2 Catastrophic 1 | . . 1 Database Lockouts . | . . . Manual 3 | . 3 . Terminals 5 | . 3 2 Fabricators . | . . . Repair Stations . | . . . Recycling Units . | . . . Scanalyzers . | . . . Garrison Access . | . . . Terminal Hacks 1 | . 1 . Unreport Threat 1 | . 1 . Fabricator Hacks . | . . . Repair Station Hacks . | . . . Recycling Unit Hacks . | . . . Scanalyzer . | . . . Garrison Access Hacks . | . . . Unauthorized Hacks . | . . . Terminals . | . . . Fabricators . | . . . Repair Stations . | . . . Recycling Units . | . . . Scanalyzers . | . . . Garrison Access . | . . . Data Cores Recovered . | . . . Used . | . . . Hacking Detections 2 | . 1 1 Full Trace Events 2 | . 1 1 Feedback Events . | . . . Feedback Blocked . | . . . Robot Schematics Acquired . | . . . Robots Built . | . . . Matter . | . . . Time . | . . . Total Robot Build Rating . | . . . Part Schematics Acquired . | . . . Parts Built . | . . . Matter . | . . . Time . | . . . Total Part Build Rating . | . . . Parts Repaired . | . . . Time . | . . . Parts Recycled . | . . . Recycled Matter . | . . . Retrieved Matter . | . . . Retrieved Components . | . . . Parts Scanalyzed . | . . . Part Schematics Acquired . | . . . Parts Damaged . | . . . Bothacking | -11 -10 -9 ------------ Run | Scr Mat Mat Used RIF Installer . | . . . Robots Hacked . | . . . Non-combat . | . . . Combat . | . . . Robot Hacks Applied . | . . . Relay Couplers Released . | . . . Robots Rewired . | . . . Allies Hacked . | . . . Hacks Repelled . | . . . Allies | -11 -10 -9 -------- Run | Scr Mat Mat Total Allies . | . . . Largest Group . | . . . Highest-Rated Group . | . . . Highest-Rated Ally . | . . . Total Orders . | . . . Ally Attacks . | . . . Total Damage . | . . . Kills . | . . . Allies Corrupted . | . . . Allies Melted . | . . . Intel | -11 -10 -9 ------- Run | Scr Mat Mat Robot Analysis Total . | . . . Derelict Logs Recovered . | . . . Drone Launches . | . . . Drone Recoveries . | . . . Exploration | -11 -10 -9 ------------- Run | Scr Mat Mat Turns Passed 599 | 3 321 275 Spaces Moved 336 | 1 199 136 Core . | . . . Treads . | . . . Legs 336 | 1 199 136 Wheels . | . . . Hover . | . . . Flight . | . . . Fastest Speed 120 | 120 120 120 Average Speed 120 | 120 120 121 Slowest Speed 150 | 120 150 150 Overloaded Moves . | . . . Propulsion Burnouts . | . . . Robots Hopped . | . . . Cave-ins Triggered . | . . . Exploration Rate (%) 18 | 1 31 22 Regions Visited 2 Branch Regions . Pre-discovered Areas . | . . . Known Exits Taken . | . . . Unknown Exits Taken 2 | 1 1 . Scrap Searched . | . . . Spaces Dug . | . . . Terrain Destroyed . | . . . Melee . | . . . Projectile . | . . . AOE . | . . . Actions | -11 -10 -9 --------- Run | Scr Mat Mat Total 428 | 4 236 188 Wait 2 | . 2 . Move 334 | . 198 136 Hop . | . . . Pick Up 5 | . 5 . Fast Attach 3 | . 2 1 Attach 6 | . 1 5 Detach . | . . . Swap 3 | . 3 . Drop 6 | 4 2 . Fire 43 | . 23 20 Melee . | . . . Ram 22 | . . 22 Kick 4 | . . 4 Crush . | . . . Escape Stasis . | . . . Rewire . | . . . Trap . | . . . Miscellaneous . | . . . Route ------- -11/Scrapyard -10/Materials -9/Materials History --------- Turn | Location | Event 4 | -11/Scrapyard | Discovered new exit (range 0) 4 | -11/Scrapyard | Entered Materials 283 | -10/Materials | Discovered new exit (range 5) 317 | -10/Materials | Build established: Mutant 325 | -10/Materials | Entered another Materials area 325 | -9/Materials | Evolved 2 slots: Utility x2 554 | -9/Materials | Core integrity fell below 50% 579 | -9/Materials | Core integrity fell below 20% 600 | -9/Materials | Destroyed by G-47 Trooper with Particle Gun Last Messages --------------- 00550_ Mining Laser destroyed. 00552_ Kicked Y-45 Defender out of the way. 00553_ Y-45 Defender destroyed. 00556_ Slammed into G-47 Trooper. 00558_ Aluminum Leg destroyed. 00558_ Slammed into G-47 Trooper. 00562_ Heat Sink destroyed. 00562_ Slammed into G-47 Trooper. 00562_ Destabilizing: Core damaged (-8). 00564_ Slammed into G-47 Trooper. 00564_ Imp. Ion Engine permanently disabled. 00564_ Destabilizing: Short circuit. 00566_ Slammed into G-47 Trooper. 00570_ R-06 Scavenger collects Heat Sink. 00572_ Slammed into G-47 Trooper. 00592_ Broken Imp. Ion Engine destroyed. 00592_ Slammed into G-47 Trooper. 00598_ Acquired 5 matter. 00598_ Kicked G-47 Trooper out of the way. 00599_ Acquired 1 matter. Map ----- +----------------------------------------------------+ | | | | | | | | | | | | | | | | | | | | | | | | | | | | | | | | | | | | | | | | | | | | | | | ???????????????#############??????????????????? | | ???????????????#! %=%%#??????????????????? | | ???????????????# """""%%@g#??????????????????? | | ???????######### """"""""" #??????????????????? | | ???????+ + "" %"""%%#??????????????????? | | ???????# ##### # %%g%%%%#??????????????????? | | ?????????????# # %"T""%##?????????????????? | | ?????????????# # g """"%%#?????????????????? | | ?????????????# #####/########?????????????????? | | ????????????## ##?# #???????????????????????? | | ????????????# ### #???????????????????????? | | ????????????# #???????????????????????? | | ????????????# ### #???????????????????????? | | ????????????##/##?# #???????????????????????? | | ??????????? ?# #???????????????????????? | | ?????????? # #???????????????????????? | | ????????# """ """ # #?????###???????????????? | | ????????# """ """ # #????# ??????????????? | | ????????# """ """ # #????# """??????????????? | | ????????# # #????# """ ?###########?? | | ????????# # #????# """ ?# # ?? | | ????????# / #????# # # """"?? | | ??????????######### #????# """ # # """""? | | ??????????????????# ###### """ + # """""? | | ???????????######## # """ # # """""? | | ???? # # + """""? | | ???????????## ##### # " ""?# # """""? | +----------------------------------------------------+ Best States ------------- Heat Dissipation 48 Energy Generation 12 Energy Capacity 265 Matter Stores 300 Matter Capacity 300 Sight Range 16 Terrain Scan Density 10 Evasion (%) 40 Item Schematics ----------------- None Robot Schematics ------------------ None Fabricated ------------ Nothing Alien Tech Used ----------------- None Achievements -------------- None Challenges ------------ None Game ------ Seed MolecularAerolevRipper Manual? 0 Play Time 00:05:32 Cumulative 276.1 hours Start 2020.08.11 @ 20:11:57 End 2020.08.11 @ 20:15:46 Sessions 1 Manual Loads 0 Difficulty Rogue Special Mode None Game No. 421 Rogue 420 Adventurer 0 Explorer 1 Win Type - Total 1 Types 1/0/0/0/0/0/0 Lore% 67 Gallery% 81 Achievement% 55 Wizard Run 0 Options --------- ASCII 0 Keyboard 1 Movement Vi Keybinds 0 Fullscreen 2 Font 14/Cog Map View 72x54 Tactical HUD 1 Map Filters NONE Filters LOW_CONTRAST(13,24,33) Steam 0 RUN: 270150d4-f08b-42d3-b18d-a6bf121331bc